fUST/lending_fUST_20250609
["ID","MTS","AMOUNT","RATE_DAILY","PERIOD"]
[365116592,1749473439653,-440.0,0.00022191,4]
[365116593,1749473439663,-440.0,0.00022191,4]
[365116594,1749473439673,-440.0,0.00022191,4]
[365116595,1749473439683,-420.0,0.00022191,4]
[365116596,1749473439692,-420.0,0.00022191,4]
[365116597,1749473439702,-440.0,0.00022191,4]
[365116598,1749473439713,-430.58295268,0.00022191,4]
[365116599,1749473439723,-440.0,0.00022191,4]
[365116600,1749473439732,-440.0,0.00022191,4]
[365116601,1749473439741,-440.0,0.00022191,2]
[365116602,1749473439751,-420.0,0.00022191,4]
[365116603,1749473439761,-440.0,0.00022191,4]
[365116604,1749473439770,-440.0,0.00022191,4]
[365116605,1749473439780,-440.0,0.00022191,4]
[365116606,1749473439790,-440.0,0.00022191,4]
[365116607,1749473439800,-440.0,0.00022191,4]
[365116608,1749473439809,-440.0,0.00022191,4]
[365116609,1749473439819,-522.73658176,0.00022191,4]
[365116610,1749473439829,-440.0,0.00022191,4]
[365116611,1749473439838,-440.0,0.00022191,4]
[365116612,1749473439848,-420.0,0.00022191,4]
[365116613,1749473439858,-440.0,0.00022191,4]
[365116614,1749473439867,-440.0,0.00022191,4]
[365116615,1749473439877,-440.0,0.00022191,4]
[365116616,1749473439887,-440.0,0.00022191,4]
[365116617,1749473439896,-440.0,0.00022191,4]
[365116618,1749473439906,-420.0,0.00022191,4]
[365116619,1749473439915,-498.27877688,0.00022191,4]
[365116620,1749473439931,-440.0,0.00022191,4]
[365116621,1749473439941,-543.86578855,0.00022191,4]
[365116622,1749473439951,-420.0,0.00022191,4]
[365116623,1749473439961,-420.0,0.00022191,4]
[365116624,1749473439970,-440.0,0.00022191,4]
[365116625,1749473439980,-420.0,0.00022191,4]
[365116626,1749473439992,-447.97659099,0.00022191,4]
[365116627,1749473440001,-440.0,0.00022191,4]
[365116628,1749473440011,-420.0,0.00022191,4]
[365116629,1749473440021,-420.0,0.00022191,4]
[365116630,1749473440031,-440.0,0.00022191,4]
[365116631,1749473440041,-420.0,0.00022191,4]
[365116632,1749473440051,-556.04117934,0.00022191,4]
[365116633,1749473440060,-440.0,0.00022191,4]
[365116634,1749473440072,-440.0,0.00022191,4]
[365116635,1749473440082,-420.0,0.00022191,4]
[365116636,1749473440093,-440.0,0.00022191,4]
[365116637,1749473440103,-924.97,0.00022191,4]
[365116638,1749473440113,-440.0,0.00022191,4]
[365116639,1749473440123,-420.0,0.00022191,4]
[365116640,1749473440133,-440.0,0.00022191,4]
[365116641,1749473440142,-440.0,0.00022191,4]
[365116642,1749473440152,-440.0,0.00022191,4]
[365116643,1749473440162,-440.0,0.00022191,4]
[365116644,1749473440172,-440.0,0.00022191,4]
[365116645,1749473440182,-420.0,0.00022191,4]
[365116646,1749473440191,-420.0,0.00022191,4]
[365116647,1749473440201,-263.007722,0.00022191,4]
[365116648,1749473440211,-440.0,0.00022191,4]
[365116649,1749473440221,-440.0,0.00022191,4]
[365116650,1749473440230,-440.0,0.00022191,4]
[365116651,1749473440245,-440.0,0.00022191,4]
[365116653,1749473440257,-440.0,0.00022191,4]
[365116655,1749473440266,-440.0,0.00022191,4]
[365116656,1749473440275,-420.0,0.00022191,4]
[365116657,1749473440285,-440.0,0.00022191,4]
[365116658,1749473440296,-440.0,0.00022191,4]
[365116659,1749473440307,-440.0,0.00022191,4]
[365116660,1749473440317,-420.0,0.00022191,4]
[365116661,1749473440330,-440.0,0.00022191,4]
[365116662,1749473440340,-420.0,0.00022191,4]
[365116663,1749473440350,-400.0,0.00022191,4]
[365116664,1749473440359,-440.0,0.00022191,4]
[365116665,1749473440369,-440.0,0.00022191,4]
[365116666,1749473440379,-440.0,0.00022191,4]
[365116667,1749473440390,-420.0,0.00022191,4]
[365116668,1749473440402,-1382.76,0.00022191,4]
[365116669,1749473440415,-440.0,0.00022191,4]
[365116670,1749473440424,-420.0,0.00022191,4]
[365116671,1749473440434,-440.0,0.00022191,4]
[365116672,1749473440443,-440.0,0.00022191,4]
[365116674,1749473440453,-440.0,0.00022191,4]
[365116675,1749473440463,-2215.74,0.00022191,4]
[365116677,1749473440473,-440.0,0.00022191,4]
[365116679,1749473440484,-440.0,0.00022191,4]
[365116681,1749473440494,-440.0,0.00022191,4]
[365116683,1749473440504,-440.0,0.00022191,4]
[365116684,1749473440514,-440.0,0.00022191,4]
[365116685,1749473440526,-440.0,0.00022191,4]
[365116686,1749473440536,-440.0,0.00022191,4]
[365116687,1749473440546,-440.0,0.00022191,4]
[365116688,1749473440557,-440.0,0.00022191,4]
[365116690,1749473440568,-420.0,0.00022191,4]
[365116691,1749473440578,-440.0,0.00022191,4]
[365116692,1749473440590,-440.0,0.00022191,4]
[365116693,1749473440599,-440.0,0.00022191,4]
[365116696,1749473440712,-440.0,0.00022191,4]
[365116697,1749473440723,-1654.7,0.00022191,4]
[365116698,1749473440733,-440.0,0.00022191,4]
[365116699,1749473440743,-440.0,0.00022191,4]
[365116700,1749473440752,-440.0,0.00022191,4]
[365116701,1749473440762,-440.0,0.00022191,4]
[365116702,1749473440771,-440.0,0.00022191,4]
[365116703,1749473440781,-440.0,0.00022191,4]
[365116704,1749473440792,-509.82,0.00022191,4]
[365116705,1749473440802,-440.0,0.00022191,4]
[365116706,1749473440812,-440.0,0.00022191,4]
[365116707,1749473440823,-1692.05,0.00022191,4]
[365116708,1749473440833,-440.0,0.00022191,4]
[365116709,1749473440843,-440.0,0.00022191,4]
[365116710,1749473440854,-440.0,0.00022191,4]
[365116711,1749473440864,-519.05,0.00022191,4]
[365116712,1749473440873,-440.0,0.00022191,4]
[365116713,1749473440883,-440.0,0.00022191,4]
[365116714,1749473440892,-440.0,0.00022191,4]
[365116715,1749473440902,-440.0,0.00022191,4]
[365116718,1749473440911,-440.0,0.00022191,4]
[365116721,1749473440920,-440.0,0.00022191,4]
[365116722,1749473440930,-440.0,0.00022191,4]
[365116723,1749473440940,-440.0,0.00022191,4]
[365116724,1749473440950,-475.20554339,0.00022191,4]
[365116725,1749473440959,-440.0,0.00022191,4]
[365116727,1749473440969,-440.0,0.00022191,4]
[365116729,1749473440978,-510.11,0.00022191,4]
[365116730,1749473440988,-440.0,0.00022191,4]
[365116731,1749473440998,-440.0,0.00022191,4]
[365116732,1749473441007,-999.9,0.00022191,4]
[365116733,1749473441016,-440.0,0.00022191,4]
[365116734,1749473441026,-440.0,0.00022191,4]
[365116735,1749473441037,-550.0,0.00022191,4]
[365116736,1749473441047,-892.16,0.00022191,4]
[365116737,1749473441057,-440.0,0.00022191,4]
[365116738,1749473441066,-440.0,0.00022191,4]
[365116739,1749473441076,-420.0,0.00022191,4]
[365116740,1749473441085,-440.0,0.00022191,4]
[365116741,1749473441095,-440.0,0.00022191,4]
[365116742,1749473441104,-440.0,0.00022191,4]
[365116743,1749473441113,-440.0,0.00022191,4]
[365116744,1749473441123,-440.0,0.00022191,4]
[365116745,1749473441340,-440.0,0.00022191,4]
[365116746,1749473441350,-1058.79,0.00022191,4]
[365116747,1749473441360,-440.0,0.00022191,4]
[365116748,1749473441370,-440.0,0.00022191,4]
[365116749,1749473441380,-420.0,0.00022191,4]
[365116750,1749473441390,-440.0,0.00022191,4]
[365116751,1749473441400,-440.0,0.00022191,4]
[365116752,1749473441410,-420.0,0.00022191,4]
[365116753,1749473441420,-440.0,0.00022191,4]
[365116754,1749473441431,-440.0,0.00022191,4]
[365116755,1749473441440,-428.26081988,0.00022191,4]
[365116756,1749473441450,-440.0,0.00022191,4]
[365116757,1749473441459,-473.38458235,0.00022191,4]
[365116758,1749473441469,-440.0,0.00022191,4]
[365116759,1749473441478,-440.0,0.00022191,4]
[365116760,1749473441489,-440.0,0.00022191,4]
[365116761,1749473441498,-1025.01,0.00022191,4]
[365116762,1749473441507,-440.0,0.00022191,4]
[365116763,1749473441517,-420.0,0.00022191,4]
[365116764,1749473441526,-440.0,0.00022191,4]
[365116765,1749473441535,-420.0,0.00022191,4]
[365116766,1749473441545,-440.0,0.00022191,4]
[365116767,1749473441554,-440.0,0.00022191,4]
[365116768,1749473441563,-440.0,0.00022191,4]
[365116769,1749473441573,-2872.6,0.00022191,4]
[365116770,1749473441583,-440.0,0.00022191,4]
[365116771,1749473441593,-817.54,0.00022191,4]
[365116772,1749473441602,-430.0,0.00022191,4]
[365116773,1749473441613,-440.0,0.00022191,4]
[365116774,1749473441622,-440.0,0.00022191,4]
[365116775,1749473441633,-760.22,0.00022191,4]
[365116776,1749473441642,-430.0,0.00022191,4]
[365116777,1749473441652,-430.0,0.00022191,4]
[365116778,1749473441662,-440.0,0.00022191,4]
[365116779,1749473441672,-440.0,0.00022191,4]
[365116780,1749473441682,-440.0,0.00022191,4]
[365116781,1749473441691,-440.0,0.00022191,4]
[365116782,1749473441701,-201.77120038,0.00022191,4]
[365116783,1749473441710,-440.0,0.00022191,4]
[365116784,1749473441724,-440.0,0.00022191,4]
[365116785,1749473441739,-440.0,0.00022191,4]
[365116786,1749473441748,-440.0,0.00022191,4]
[365116787,1749473441758,-440.0,0.00022191,4]
[365116788,1749473441767,-262.01995318,0.00022191,4]
[365116789,1749473441776,-440.0,0.00022191,4]
[365116790,1749473441785,-440.0,0.00022191,4]
[365116791,1749473441795,-440.0,0.00022191,4]
[365116792,1749473441804,-685.06,0.00022191,4]
[365116793,1749473441813,-440.0,0.00022191,4]
[365116794,1749473441822,-440.0,0.00022191,4]
[365116795,1749473441832,-911.03,0.00022191,4]
[365116796,1749473441841,-440.0,0.00022191,4]
[365116797,1749473441851,-440.0,0.00022191,4]
[365116798,1749473441861,-1410.61,0.00022191,4]
[365116799,1749473441871,-403.48685481,0.00022191,4]
[365116800,1749473441881,-444.89,0.00022191,4]
[365116801,1749473441890,-440.0,0.00022191,4]
[365116802,1749473441900,-1677.41,0.00022191,4]
[365116803,1749473441909,-440.0,0.00022191,4]
[365116804,1749473441918,-440.0,0.00022191,4]
[365116805,1749473441928,-440.0,0.00022191,4]
[365116806,1749473441938,-1988.97,0.00022191,4]
[365116807,1749473441947,-440.0,0.00022191,4]
[365116808,1749473441957,-440.0,0.00022191,4]
[365116809,1749473441966,-440.0,0.00022191,4]
[365116810,1749473441976,-1404.38,0.00022191,4]
[365116811,1749473441986,-151.0,0.000222,5]
[365116812,1749473441995,-999.33516105,0.0002221,6]
[365116813,1749473442005,-151.83197219,0.00022269,2]
[365116814,1749473442015,-999.33516105,0.00022314,7]
[365116815,1749473442024,-1311.60624792,0.00022415,2]
[365116816,1749473442033,-999.33516105,0.00022417,7]
[365116817,1749473442043,-541.08689322,0.00022459,2]
[365116818,1749473442052,-545.8,0.00022464,3]
[365116820,1749473442061,-420.0,0.00022465,4]
[365116821,1749473442071,-420.0,0.00022465,4]
[365116822,1749473442080,-421.21475966,0.00022465,4]
[365116823,1749473442089,-209.79950307,0.00022465,4]
[365116824,1749473442098,-299.44754562,0.00022465,4]
[365116825,1749473442108,-420.0,0.00022465,4]
[365116826,1749473442117,-440.0,0.00022465,4]
[365116827,1749473442126,-440.0,0.00022465,4]
[365116828,1749473442137,-440.0,0.00022465,4]
[365116829,1749473442147,-440.0,0.00022465,4]
[365116830,1749473442156,-440.0,0.00022465,4]
[365116831,1749473442166,-440.0,0.00022465,4]
[365116832,1749473442176,-440.0,0.00022465,4]
[365116833,1749473442185,-440.0,0.00022465,4]
[365116834,1749473442195,-284.318764,0.00022465,4]
[365116835,1749473442205,-440.0,0.00022465,4]
[365116836,1749473442216,-380.0,0.00022465,4]
[365116837,1749473442226,-440.0,0.00022465,4]
[365116838,1749473442236,-440.0,0.00022465,4]
[365116839,1749473442248,-440.0,0.00022465,4]
[365116840,1749473442259,-410.0,0.00022465,4]
[365116841,1749473442268,-440.0,0.00022465,4]
[365116842,1749473442278,-410.0,0.00022465,4]
[365116843,1749473442288,-440.0,0.00022465,4]
[365116844,1749473442298,-440.0,0.00022465,4]
[365116845,1749473442308,-440.0,0.00022465,4]
[365116846,1749473442317,-440.0,0.00022465,4]
[365116847,1749473442329,-440.0,0.00022465,4]
[365116848,1749473442339,-440.0,0.00022465,4]
[365116849,1749473442348,-410.0,0.00022465,4]
[365116850,1749473442357,-410.0,0.00022465,4]
[365116851,1749473442366,-410.0,0.00022465,4]
[365116852,1749473442375,-440.0,0.00022465,4]
[365116853,1749473442384,-410.0,0.00022465,4]
[365116854,1749473442394,-189.97711309,0.00022465,4]
[365116855,1749473442403,-440.0,0.00022465,4]
[365116856,1749473442415,-410.0,0.00022465,4]
[365116857,1749473442425,-440.0,0.00022465,2]
[365116858,1749473442434,-440.0,0.00022465,4]
[365116859,1749473442444,-186.7482233,0.00022465,4]
[365116860,1749473442454,-382.38669819,0.00022465,4]
[365116861,1749473442469,-410.0,0.00022465,4]
[365116862,1749473442479,-440.0,0.00022465,4]
[365116863,1749473442489,-410.0,0.00022465,4]
[365116864,1749473442499,-440.0,0.00022465,4]
[365116865,1749473442509,-410.0,0.00022465,4]
[365116866,1749473442518,-440.0,0.00022465,4]
[365116867,1749473442528,-410.0,0.00022465,4]
[365116868,1749473442538,-480.0,0.00022465,4]
[365116869,1749473442547,-410.0,0.00022465,4]
[365116870,1749473442557,-410.0,0.00022465,4]
[365116871,1749473442567,-410.0,0.00022465,4]
[365116872,1749473442578,-410.0,0.00022465,4]
[365116873,1749473442587,-380.0,0.00022465,4]
[365116874,1749473442598,-440.0,0.00022465,4]
[365116875,1749473442607,-440.0,0.00022465,4]
[365116876,1749473442617,-534.42149569,0.00022465,4]
[365116877,1749473442628,-924.97,0.00022465,4]
[365116878,1749473442638,-440.0,0.00022465,4]
[365116879,1749473442647,-410.0,0.00022465,4]
[365116880,1749473442657,-391.56699266,0.00022465,4]
[365116881,1749473442667,-440.0,0.00022465,4]
[365116882,1749473442677,-440.0,0.00022465,4]
[365116883,1749473442686,-440.0,0.00022465,4]
[365116884,1749473442696,-440.0,0.00022465,4]
[365116885,1749473442706,-440.0,0.00022465,4]
[365116886,1749473442716,-440.0,0.00022465,4]
[365116887,1749473442729,-410.0,0.00022465,4]
[365116888,1749473442739,-410.0,0.00022465,4]
[365116889,1749473442749,-420.0,0.00022465,4]
[365116890,1749473442758,-410.0,0.00022465,4]
[365116891,1749473442767,-440.0,0.00022465,4]
[365116892,1749473442777,-410.0,0.00022465,4]
[365116893,1749473442787,-410.0,0.00022465,4]
[365116894,1749473442796,-413.2271762,0.00022465,4]
[365116895,1749473442806,-420.0,0.00022465,4]
[365116896,1749473442816,-1382.76,0.00022465,4]
[365116897,1749473442826,-410.0,0.00022465,4]
[365116898,1749473442835,-2215.74,0.00022465,4]
[365116899,1749473442846,-440.0,0.00022465,4]
[365116901,1749473442855,-384.22612609,0.00022465,4]
[365116902,1749473442865,-440.0,0.00022465,4]
[365116903,1749473442875,-410.0,0.00022465,4]
[365116904,1749473442885,-410.0,0.00022465,4]
[365116905,1749473442895,-420.0,0.00022465,4]
[365116907,1749473442905,-482.40494254,0.00022465,4]
[365116908,1749473442914,-440.0,0.00022465,4]
[365116910,1749473442923,-420.0,0.00022465,4]
[365116912,1749473442933,-440.0,0.00022465,4]
[365116914,1749473442942,-410.0,0.00022465,4]
[365116915,1749473442953,-420.0,0.00022465,4]
[365116916,1749473442962,-1654.7,0.00022465,4]
[365116917,1749473442972,-440.0,0.00022465,4]
[365116918,1749473442981,-574.99642812,0.00022465,4]
[365116919,1749473442991,-410.0,0.00022465,4]
[365116920,1749473443001,-440.0,0.00022465,4]
[365116921,1749473443011,-440.0,0.00022465,4]
[365116922,1749473443020,-509.82,0.00022465,4]
[365116923,1749473443029,-440.0,0.00022465,4]
[365116924,1749473443039,-440.0,0.00022465,4]
[365116925,1749473443049,-1692.05,0.00022465,4]
[365116926,1749473443059,-440.0,0.00022465,4]
[365116927,1749473443069,-420.0069076,0.00022465,4]
[365116928,1749473443079,-519.05,0.00022465,4]
[365116929,1749473443088,-440.0,0.00022465,4]
[365116930,1749473443098,-440.0,0.00022465,4]
[365116931,1749473443108,-420.0,0.00022465,4]
[365116932,1749473443117,-410.0,0.00022465,4]
[365116933,1749473443127,-427.64132327,0.00022465,4]
[365116934,1749473443136,-440.0,0.00022465,4]
[365116935,1749473443146,-440.0,0.00022465,4]
[365116936,1749473443155,-440.0,0.00022465,4]
[365116937,1749473443165,-410.0,0.00022465,4]
[365116938,1749473443175,-510.11,0.00022465,4]
[365116939,1749473443185,-209.06075931,0.00022465,4]
[365116940,1749473443194,-440.0,0.00022465,4]
[365116941,1749473443204,-999.9,0.00022465,4]
[365116942,1749473443213,-440.0,0.00022465,4]
[365116943,1749473443223,-420.0,0.00022465,4]
[365116944,1749473443233,-892.16,0.00022465,4]
[365116945,1749473443244,-440.0,0.00022465,4]
[365116946,1749473443258,-440.0,0.00022465,4]
[365116947,1749473443268,-440.0,0.00022465,4]
[365116948,1749473443277,-370.0,0.00022465,4]
[365116949,1749473443287,-440.0,0.00022465,4]
[365116950,1749473443298,-440.0,0.00022465,4]
[365116951,1749473443307,-440.0,0.00022465,4]
[365116952,1749473443317,-440.0,0.00022465,4]
[365116953,1749473443328,-1058.79,0.00022465,4]
[365116954,1749473443338,-221.12595463,0.00022465,4]
[365116958,1749473443441,-440.0,0.00022465,4]
[365116959,1749473443451,-440.0,0.00022465,4]
[365116961,1749473443461,-440.0,0.00022465,4]
[365116962,1749473443471,-440.0,0.00022465,4]
[365116963,1749473443481,-440.0,0.00022465,4]
[365116964,1749473443491,-440.0,0.00022465,4]
[365116965,1749473443501,-440.0,0.00022465,4]
[365116966,1749473443511,-440.0,0.00022465,4]
[365116967,1749473443520,-440.0,0.00022465,4]
[365116968,1749473443530,-1025.01,0.00022465,4]
[365116969,1749473443540,-440.0,0.00022465,4]
[365116970,1749473443550,-440.0,0.00022465,4]
[365116971,1749473443560,-440.0,0.00022465,4]
[365116972,1749473443569,-347.63854973,0.00022465,4]
[365116973,1749473443579,-440.0,0.00022465,4]
[365116974,1749473443588,-2872.6,0.00022465,4]
[365116975,1749473443598,-440.0,0.00022465,4]
[365116976,1749473443608,-817.54,0.00022465,4]
[365116977,1749473443618,-440.0,0.00022465,4]
[365116979,1749473443627,-440.0,0.00022465,4]
[365116980,1749473443637,-760.22,0.00022465,4]
[365116981,1749473443646,-440.0,0.00022465,4]
[365116982,1749473443656,-418.38865541,0.00022465,4]
[365116983,1749473443666,-480.95216294,0.00022465,4]
[365116984,1749473443676,-410.0,0.00022465,4]
[365116985,1749473443685,-440.0,0.00022465,4]
[365116986,1749473443695,-440.0,0.00022465,4]
[365116987,1749473443705,-440.0,0.00022465,4]
[365116988,1749473443715,-440.0,0.00022465,4]
[365116989,1749473443725,-440.0,0.00022465,4]
[365116990,1749473443735,-529.12104373,0.00022465,4]
[365116991,1749473443745,-440.0,0.00022465,4]
[365116992,1749473443755,-685.06,0.00022465,4]
[365116993,1749473443764,-440.0,0.00022465,4]
[365116994,1749473443774,-515.15508866,0.00022465,4]
[365116995,1749473443784,-911.03,0.00022465,4]
[365116996,1749473443794,-440.0,0.00022465,4]
[365116997,1749473443803,-1410.61,0.00022465,4]
[365116998,1749473443813,-444.89,0.00022465,4]
[365116999,1749473443823,-440.0,0.00022465,4]
[365117000,1749473443833,-1677.41,0.00022465,4]
[365117001,1749473443843,-440.0,0.00022465,4]
[365117002,1749473443853,-440.0,0.00022465,4]
[365117003,1749473443864,-440.0,0.00022465,4]
[365117004,1749473443874,-1988.97,0.00022465,4]
[365117005,1749473443884,-440.0,0.00022465,4]
[365117006,1749473443894,-440.0,0.00022465,4]
[365117007,1749473443905,-440.0,0.00022465,4]
[365117008,1749473443915,-1404.38,0.00022465,4]
[365117009,1749473443925,-500.0,0.00022473,2]
[365117010,1749473443935,-500.0,0.00022473,2]
[365117011,1749473443944,-505.78867747,0.00022473,2]
[365117012,1749473443954,-505.69346178,0.00022473,2]
[365117013,1749473443963,-500.0,0.00022473,2]
[365117014,1749473443973,-500.0,0.00022473,2]
[365117015,1749473443982,-504.42537304,0.00022473,2]
[365117016,1749473443993,-151.0,0.000225,6]
[365117017,1749473444002,-999.33516105,0.00022521,7]
[365117018,1749473444012,-450.39886159,0.00022557,2]
[365117019,1749473444021,-999.33516105,0.00022624,7]
[365117020,1749473444031,-151.83197219,0.0002272,2]
[365117021,1749473444040,-999.33516105,0.00022728,7]
[365117022,1749473444051,-1178.6,0.00022737,2]
[365117023,1749473444061,-150.0,0.00022739,4]
[365117024,1749473444071,-440.0,0.00022739,4]
[365117025,1749473444080,-440.0,0.00022739,4]
[365117026,1749473444090,-267.31550322,0.00022739,4]
[365117027,1749473444100,-440.0,0.00022739,4]
[365117028,1749473444109,-507.51432381,0.00022739,4]
[365117029,1749473444119,-430.0,0.00022739,4]
[365117030,1749473444129,-440.0,0.00022739,4]
[365117031,1749473444138,-248.91941051,0.00022739,4]
[365117032,1749473444148,-440.0,0.00022739,2]
[365117033,1749473444158,-400.0,0.00022739,4]
[365117034,1749473444168,-924.97,0.00022739,4]
[365117035,1749473444178,-252.53,0.00022739,4]
[365117036,1749473444187,-440.0,0.00022739,4]
[365117037,1749473444197,-440.0,0.00022739,4]
[365117038,1749473444207,-440.0,0.00022739,4]
[365117039,1749473444218,-1382.76,0.00022739,4]
[365117040,1749473444228,-2215.74,0.00022739,4]
[365117041,1749473444238,-440.0,0.00022739,4]
[365117042,1749473444249,-440.0,0.00022739,4]
[365117043,1749473444260,-1654.7,0.00022739,4]
[365117044,1749473444271,-509.82,0.00022739,4]
[365117045,1749473444280,-1692.05,0.00022739,4]
[365117046,1749473444292,-440.0,0.00022739,4]
[365117047,1749473444303,-440.0,0.00022739,4]
[365117048,1749473444313,-519.05,0.00022739,4]
[365117049,1749473444323,-440.0,0.00022739,4]
[365117050,1749473444334,-440.0,0.00022739,4]
[365117051,1749473444345,-510.11,0.00022739,4]
[365117052,1749473444355,-999.9,0.00022739,4]
[365117053,1749473444366,-892.16,0.00022739,4]
[365117054,1749473444377,-495.32301997,0.00022739,4]
[365117055,1749473444390,-440.0,0.00022739,4]
[365117056,1749473444401,-1058.79,0.00022739,4]
[365117057,1749473444412,-440.0,0.00022739,4]
[365117058,1749473444423,-184.92441442,0.00022739,4]
[365117059,1749473444433,-440.0,0.00022739,4]
[365117060,1749473444443,-1025.01,0.00022739,4]
[365117061,1749473444453,-440.0,0.00022739,4]
[365117062,1749473444463,-2872.6,0.00022739,4]
[365117063,1749473444473,-410.0,0.00022739,4]
[365117064,1749473444482,-817.54,0.00022739,4]
[365117065,1749473444492,-440.0,0.00022739,4]
[365117066,1749473444502,-760.22,0.00022739,4]
[365117067,1749473444512,-440.0,0.00022739,4]
[365117068,1749473444522,-440.0,0.00022739,4]
[365117069,1749473444532,-685.06,0.00022739,4]
[365117070,1749473444541,-440.0,0.00022739,4]
[365117071,1749473444552,-911.03,0.00022739,4]
[365117072,1749473444562,-440.0,0.00022739,4]
[365117073,1749473444572,-1410.61,0.00022739,4]
[365117074,1749473444582,-444.89,0.00022739,4]
[365117075,1749473444592,-1677.41,0.00022739,4]
[365117076,1749473444601,-440.0,0.00022739,4]
[365117077,1749473444611,-1988.97,0.00022739,4]
[365117078,1749473444621,-1404.38,0.00022739,4]
[365117079,1749473444630,-207.4,0.00022782,2]
[365117080,1749473444640,-151.0,0.000228,5]
[365117081,1749473444650,-999.33516105,0.00022831,8]
[365117082,1749473444659,-159.96257319,0.00022904,2]
[365117083,1749473444669,-159.96257319,0.00022904,2]
[365117084,1749473444680,-159.96257319,0.00022904,2]
[365117085,1749473444690,-999.33516105,0.00022934,8]
[365117086,1749473444699,-500.33683505,0.00022946,2]
[365117087,1749473444709,-153.0,0.00022959,2]
[365117088,1749473444719,-6.8299132,0.00022959,2]
[365117089,1749473444763,-146.1700868,0.00022959,2]
[365117090,1749473444773,-153.0,0.00022959,2]
[365117091,1749473444783,-151.0,0.00023,7]
[365117092,1749473444792,-147.78314969,0.00023,3]
[365117093,1749473444804,-319.15618644,0.00023,3]
[365117094,1749473444817,-533.06066387,0.00023,3]
[365117095,1749473444827,-1060.0,0.00023,2]
[365117096,1749473444836,-440.0,0.00023013,4]
[365117097,1749473444846,-440.0,0.00023013,4]
[365117098,1749473444855,-440.0,0.00023013,4]
[365117099,1749473444865,-440.0,0.00023013,4]
[365117100,1749473444874,-440.0,0.00023013,2]
[365117101,1749473444884,-924.97,0.00023013,4]
[365117102,1749473444894,-440.0,0.00023013,4]
[365117103,1749473444904,-440.0,0.00023013,4]
[365117104,1749473444914,-172.25689351,0.00023013,4]
[365117126,1749473446714,-440.0,0.00021917,4]
[365117127,1749473446724,-213.08899333,0.0002219,7]
[365117128,1749473446734,-440.0,0.00022191,4]
[365117129,1749473446744,-1416.0358378,0.000222,69]
[365117130,1749473446754,-513.96,0.00022455,3]
[365117131,1749473446763,-153.0,0.00022959,2]
[365117132,1749473446773,-267.74310649,0.00023013,4]
[365117133,1749473446783,-1382.76,0.00023013,4]
[365117134,1749473446793,-2215.74,0.00023013,4]
[365117135,1749473446803,-440.0,0.00023013,4]
[365117136,1749473446812,-440.0,0.00023013,4]
[365117137,1749473446822,-1654.7,0.00023013,4]
[365117138,1749473446832,-509.82,0.00023013,4]
[365117139,1749473446841,-1692.05,0.00023013,4]